fUST/lending_fUST_20250422
["ID","MTS","AMOUNT","RATE_DAILY","PERIOD"]
[358614081,1745311848526,-500.0,0.00022191,2]
[358614082,1745311848539,-500.0,0.00022191,2]
[358614083,1745311848556,-500.0,0.00022191,2]
[358614084,1745311848572,-317.49683026,0.00022191,2]
[358614085,1745311848593,-182.50316974,0.00022191,2]
[358614086,1745311848606,-142.15243252,0.00022191,2]
[358614087,1745311848991,-357.84756748,0.00022191,2]
[358614088,1745311849005,-255.99207063,0.00022191,2]
[358614089,1745311849490,-244.00792937,0.00022191,2]
[358614090,1745311849740,-500.0,0.00022191,2]
[358614091,1745311849764,-500.0,0.00022191,2]
[358614092,1745311849777,-500.0,0.00022191,2]
[358614093,1745311849788,-565.86,0.00022191,2]
[358614094,1745311849798,-500.0,0.00022191,2]
[358614095,1745311849809,-500.0,0.00022191,2]
[358614096,1745311849820,-250.33339452,0.00022191,2]
[358617942,1745313031788,-251.3899291,0.00020403,2]
[358617943,1745313031798,-237.734004,0.00020405,2]
[358617944,1745313031808,-151.0,0.00021393,2]
[358617945,1745313031818,-207.4,0.00021393,2]
[358617946,1745313031828,-973.38350601,0.00021402,2]
[358617947,1745313031837,-238.92964793,0.00021402,2]
[358617948,1745313031847,-300.0,0.00021404,2]
[358617949,1745313031856,-1200.0,0.00021404,2]
[358617950,1745313031866,-11535.49468612,0.00021405,2]
[358617951,1745313031878,-521.61715114,0.00021405,2]
[358617965,1745313038046,-31883.91969429,0.00021405,2]
[358617966,1745313038057,-386.57666941,0.00021405,2]
[358617967,1745313038067,-167.04286692,0.00021405,2]
[358617968,1745313038078,-500.0,0.00021405,2]
[358617969,1745313038088,-500.0,0.00021405,2]
[358617970,1745313038099,-566.5421794,0.00021405,2]
[358617971,1745313038110,-500.0,0.00021405,2]
[358617972,1745313038120,-500.0,0.00021405,2]
[358617973,1745313038131,-500.0,0.00021405,2]
[358617974,1745313038142,-500.0,0.00021405,2]
[358617975,1745313038152,-157.60855259,0.00021405,2]
[358617976,1745313038163,-500.0,0.00021405,2]
[358617977,1745313038174,-500.0,0.00021405,2]
[358617978,1745313038187,-259.8235001,0.00021405,2]
[358617979,1745313038198,-377.4082767,0.00021405,2]
[358617980,1745313038210,-337.09917045,0.00021405,2]
[358617981,1745313038219,-7949.2040532,0.00021406,2]
[358617982,1745313038233,-3838.47564121,0.00021406,2]
[358617983,1745313038326,-77823.26834948,0.00021406,2]
[358617997,1745313041704,-4783.16653453,0.00021406,2]
[358618022,1745313042987,-99035.01037849,0.00021406,2]
[358618045,1745313045821,-902.97666268,0.00021305,2]
[358618048,1745313058247,169.75551152,0.00019306,2]
[358618051,1745313495404,5000.0,0.00017064,2]
[358618072,1745314231846,-202.0,0.00020304,2]
[358618073,1745314231856,-300.0,0.00020304,2]
[358618075,1745314231866,-1200.0,0.00020304,2]
[358618077,1745314231877,-300.0,0.00020304,2]
[358618079,1745314231887,-24900.0,0.00020305,2]
[358618081,1745314231896,-196.24817362,0.00020547,2]
[358618082,1745314231906,-196.24817362,0.0002089,2]
[358618083,1745314231916,-1430.35487465,0.0002099,2]
[358618084,1745314231926,-3281.3597043,0.00021204,2]
[358618085,1745314231935,-151.0,0.00021293,2]
[358618086,1745314231945,-158.03,0.00021304,2]
[358618087,1745314231954,-15853.33328323,0.00021304,2]
[358618088,1745314231969,-500.0,0.00021304,2]
[358618089,1745314231979,-239.73428362,0.00021304,2]
[358618090,1745314231989,-500.0,0.00021304,2]
[358618092,1745314231999,-500.0,0.00021304,2]
[358618094,1745314232008,-500.0,0.00021304,2]
[358618096,1745314232017,-500.0,0.00021304,2]
[358618098,1745314232027,-568.26087061,0.00021304,2]
[358618100,1745314232037,-500.0,0.00021304,2]
[358618102,1745314232047,-500.0,0.00021304,2]
[358618104,1745314232057,-500.0,0.00021304,2]
[358618106,1745314232067,-534.90610227,0.00021304,2]
[358618109,1745314232077,-500.0,0.00021304,2]
[358618111,1745314232086,-500.0,0.00021304,2]
[358618113,1745314232096,-250.0,0.00021304,2]
[358618115,1745314232106,-500.0,0.00021304,2]
[358618116,1745314232115,-396.53269773,0.00021304,2]
[358618118,1745314232125,-500.0,0.00021305,2]
[358618119,1745314232135,-264.18579369,0.00021305,2]
[358618120,1745314232145,-270.60366859,0.00021305,2]
[358618121,1745314232154,-455.57360788,0.00021305,2]
[358618122,1745314232163,-12570.97479393,0.00021305,3]
[358618123,1745314232173,-729.16666667,0.00021305,3]
[358618124,1745314232183,-93211.05773939,0.00021305,2]
[358618125,1745314232193,-370000.0,0.00021306,2]
[358618126,1745314232202,-207.4,0.0002138,2]
[358618127,1745314232212,-490.472,0.00021406,2]
[358618128,1745314232221,-152.0,0.00021445,2]
[358618129,1745314232231,-590.8495725,0.000215,2]
[358618130,1745314232241,-668.9527806,0.00021578,2]
[358618131,1745314232251,-151.0,0.000219,4]
[358618132,1745314232260,-500.0,0.00021917,2]
[358618133,1745314232270,-500.0,0.00021917,2]
[358618134,1745314232280,-500.0,0.00021917,2]
[358618135,1745314232289,-502.6367566,0.00021917,2]
[358618136,1745314232299,-628.46444244,0.00021917,2]
[358618137,1745314232309,-212.65639608,0.00021917,2]
[358618138,1745314232319,-500.0,0.00021917,2]
[358618139,1745314232329,-500.0,0.00021917,2]
[358618140,1745314232339,-500.65826976,0.00021917,2]
[358618141,1745314232349,-500.0,0.00021917,2]
[358618142,1745314232358,-500.82544185,0.00021917,2]
[358618143,1745314232368,-500.0,0.00021917,2]
[358618144,1745314232378,-500.0,0.00021917,2]
[358618145,1745314232388,-500.0,0.00021917,2]
[358618146,1745314232398,-500.0,0.00021917,2]
[358618147,1745314232407,-500.0,0.00021917,2]
[358618148,1745314232417,-500.0,0.00021917,2]
[358618149,1745314232427,-500.0,0.00021917,2]
[358618150,1745314232436,-513.75,0.00021917,2]
[358618151,1745314232446,-500.0,0.00021917,2]
[358618152,1745314232456,-500.0,0.00021917,2]
[358618153,1745314232466,-500.0,0.00021917,2]
[358618154,1745314232476,-518.47225159,0.00021917,2]
[358618155,1745314232486,-527.08090028,0.00021917,2]
[358618156,1745314232496,-730.36,0.00021917,2]
[358618157,1745314232506,-500.0,0.00021917,2]
[358618158,1745314232515,-803.17,0.00021917,2]
[358618159,1745314232525,-500.0,0.00021917,2]
[358618160,1745314232534,-500.0,0.00021917,2]
[358618161,1745314232543,-537.17375526,0.00021917,2]
[358618162,1745314232553,-500.0,0.00021917,2]
[358618163,1745314232563,-507.83,0.00021917,2]
[358618164,1745314232575,-500.0,0.00021917,2]
[358618165,1745314232585,-563.96,0.00021917,2]
[358618166,1745314232595,-885.26,0.00021917,2]
[358618167,1745314232607,-500.0,0.00021917,2]
[358618168,1745314232617,-500.0,0.00021917,2]
[358618169,1745314232627,-500.80542569,0.00021917,2]
[358618170,1745314232637,-500.0,0.00021917,2]
[358618171,1745314232647,-500.0,0.00021917,2]
[358618172,1745314232657,-284.96993168,0.00021917,2]
[358618173,1745314232667,-500.0,0.00021917,2]
[358618174,1745314232677,-500.0,0.00021917,2]
[358618175,1745314232690,-562.91,0.00021917,2]
[358618176,1745314232700,-500.0,0.00021917,2]
[358618177,1745314232710,-500.0,0.00021917,2]
[358618178,1745314232719,-500.0,0.00021917,2]
[358618179,1745314232729,-505.71485534,0.00021917,2]
[358618180,1745314232739,-500.0,0.00021917,2]
[358618181,1745314232749,-426.54083564,0.00021917,2]
[358618182,1745314232759,-500.83553749,0.00021917,2]
[358618183,1745314232769,-862.35,0.00021917,2]
[358618184,1745314232779,-500.0,0.00021917,2]
[358618185,1745314232789,-500.0,0.00021917,2]
[358618186,1745314232800,-500.0,0.00021917,2]
[358618187,1745314232810,-991.46,0.00021917,2]
[358618188,1745314232820,-514.91713716,0.00021917,2]
[358618189,1745314232830,-500.0,0.00021917,2]
[358618190,1745314232840,-500.0,0.00021917,2]
[358618191,1745314232849,-500.0,0.00021917,2]
[358618192,1745314232859,-506.69458991,0.00021917,2]
[358618193,1745314232869,-500.0,0.00021917,2]
[358618194,1745314232878,-500.0,0.00021917,2]
[358618195,1745314232888,-194.14500441,0.00021917,2]
[358618196,1745314232897,-501.00251444,0.00021917,2]
[358618197,1745314232907,-500.0,0.00021917,2]
[358618198,1745314232917,-500.0,0.00021917,2]
[358618199,1745314232927,-294.07193518,0.00021917,2]
[358618200,1745314232938,-500.0,0.00021917,2]
[358618201,1745314232948,-659.07,0.00021917,2]
[358618202,1745314232958,-624.40303716,0.00021917,2]
[358618203,1745314232968,-434.10998265,0.00021917,2]
[358618204,1745314232978,-500.0,0.00021917,2]
[358618205,1745314232989,-654.88,0.00021917,2]
[358618206,1745314233000,-500.0,0.00021917,2]
[358618207,1745314233010,-504.12791805,0.00021917,2]
[358618208,1745314233020,-500.36119808,0.00021917,2]
[358618209,1745314233029,-500.0,0.00021917,2]
[358618210,1745314233039,-500.0,0.00021917,2]
[358618211,1745314233050,-500.0,0.00021917,2]
[358618212,1745314233060,-500.0,0.00021917,2]
[358618213,1745314233070,-512.66133037,0.00021917,2]
[358618214,1745314233080,-500.0,0.00021917,2]
[358618215,1745314233089,-244.13751357,0.00021917,2]
[358618216,1745314233099,-500.0,0.00021917,2]
[358618217,1745314233109,-502.57807293,0.00021917,2]
[358618218,1745314233120,-500.0,0.00021917,2]
[358618219,1745314233130,-575.95798886,0.00021917,2]
[358618220,1745314233139,-1442.24,0.00021917,2]
[358618221,1745314233150,-503.8356674,0.00021917,2]
[358618222,1745314233159,-608.96,0.00021917,2]
[358618223,1745314233169,-500.0,0.00021917,2]
[358618224,1745314233180,-500.0,0.00021917,2]
[358618225,1745314233190,-736.68,0.00021917,2]
[358618226,1745314233200,-500.0,0.00021917,2]
[358618227,1745314233210,-500.0,0.00021917,2]
[358618228,1745314233220,-610.01,0.00021917,2]
[358618229,1745314233229,-502.01298322,0.00021917,2]
[358618230,1745314233239,-500.0,0.00021917,2]
[358618231,1745314233249,-500.0,0.00021917,2]
[358618232,1745314233258,-502.47844044,0.00021917,2]
[358618233,1745314233268,-500.0,0.00021917,2]
[358618234,1745314233278,-500.0,0.00021917,2]
[358618235,1745314233288,-500.0,0.00021917,2]
[358618236,1745314233298,-500.0,0.00021917,2]
[358618237,1745314233308,-475.92744178,0.00021917,2]
[358618238,1745314233318,-505.20018493,0.00021917,2]
[358618239,1745314233328,-500.0,0.00021917,2]
[358618240,1745314233338,-500.0,0.00021917,2]
[358618241,1745314233348,-958.78,0.00021917,2]
[358618242,1745314233358,-500.0,0.00021917,2]
[358618243,1745314233368,-713.31,0.00021917,2]
[358618244,1745314233378,-500.0,0.00021917,2]
[358618245,1745314233389,-500.0,0.00021917,2]
[358618246,1745314233401,-273.88838808,0.00021917,2]
[358618247,1745314233411,-402.47861028,0.00021917,2]
[358618248,1745314233421,-500.0,0.00021917,2]
[358618249,1745314233432,-501.51962731,0.00021917,2]
[358618250,1745314233442,-500.0,0.00021917,2]
[358618251,1745314233452,-2028.73,0.00021917,2]
[358618252,1745314233462,-500.0,0.00021917,2]
[358618253,1745314233472,-500.0,0.00021917,2]
[358618254,1745314233621,-509.62413297,0.00021917,2]
[358618255,1745314233632,-500.0,0.00021917,2]
[358618256,1745314233643,-500.0,0.00021917,2]
[358618257,1745314233653,-500.0,0.00021917,2]
[358618258,1745314233663,-500.0,0.00021917,2]
[358618259,1745314233674,-501.13022567,0.00021917,2]
[358618260,1745314233684,-500.0,0.00021917,2]
[358618261,1745314233694,-503.49670878,0.00021917,2]
[358618262,1745314233704,-500.0,0.00021917,2]
[358618263,1745314233713,-500.0,0.00021917,2]
[358618264,1745314233723,-500.0,0.00021917,2]
[358618265,1745314233733,-500.0,0.00021917,2]
[358618266,1745314233743,-500.0,0.00021917,2]
[358618267,1745314233753,-500.0,0.00021917,2]
[358618268,1745314233762,-586.6,0.00021917,2]
[358618269,1745314233772,-502.53201316,0.00021917,2]
[358618270,1745314233782,-503.06066602,0.00021917,2]
[358618271,1745314233791,-503.32818773,0.00021917,2]
[358618272,1745314233801,-500.0,0.00021917,2]
[358618273,1745314233811,-501.94659805,0.00021917,2]
[358618274,1745314233821,-740.53,0.00021917,2]
[358618275,1745314233832,-500.0,0.00021917,2]
[358618276,1745314233841,-432.62457983,0.00021917,2]
[358618277,1745314233852,-882.22,0.00021917,2]
[358618278,1745314233862,-500.0,0.00021917,2]
[358618279,1745314233873,-517.94684188,0.00021917,2]
[358618280,1745314233883,-920.82,0.00021917,2]
[358618281,1745314233892,-504.36818305,0.00021917,2]
[358618282,1745314233902,-500.0,0.00021917,2]
[358618283,1745314233912,-652.82,0.00021917,2]
[358618284,1745314233921,-500.0,0.00021917,2]
[358618285,1745314233931,-500.0,0.00021917,2]
[358618286,1745314233941,-1168.95,0.00021917,2]
[358618287,1745314233951,-500.0,0.00021917,2]
[358618288,1745314233962,-500.0,0.00021917,2]
[358618289,1745314233972,-500.0,0.00021917,2]
[358618290,1745314233981,-500.0,0.00021917,2]
[358618291,1745314233991,-648.7,0.00021917,2]
[358618292,1745314234000,-500.0,0.00021917,2]
[358618293,1745314234010,-500.0,0.00021917,2]
[358618294,1745314234020,-500.0,0.00021917,2]
[358618295,1745314234030,-500.72213027,0.00021917,2]
[358618296,1745314234040,-500.0,0.00021917,2]
[358618297,1745314234050,-532.15280362,0.00021917,2]
[358618298,1745314234060,-525.39,0.00021917,2]
[358618299,1745314234070,-960.81,0.00021917,2]
[358618300,1745314234079,-500.0,0.00021917,2]
[358618301,1745314234088,-500.0,0.00021917,2]
[358618302,1745314234098,-538.1,0.00021917,2]
[358618303,1745314234108,-500.0,0.00021917,2]
[358618304,1745314234118,-500.0,0.00021917,2]
[358618305,1745314234128,-500.38854713,0.00021917,2]
[358618306,1745314234138,-500.0,0.00021917,2]
[358618307,1745314234148,-500.0,0.00021917,2]
[358618308,1745314234158,-500.0,0.00021917,2]
[358618309,1745314234167,-500.0,0.00021917,2]
[358618310,1745314234176,-500.0,0.00021917,2]
[358618311,1745314234186,-500.0,0.00021917,2]
[358618312,1745314234195,-500.0,0.00021917,2]
[358618313,1745314234205,-500.0,0.00021917,2]
[358618314,1745314234214,-503.20572733,0.00021917,2]
[358618315,1745314234224,-566.3,0.00021917,2]
[358618316,1745314234234,-484.73078688,0.00021917,2]
[358618317,1745314234243,-500.0,0.00021917,2]
[358618318,1745314234254,-575.68,0.00021917,2]
[358618319,1745314234264,-500.0,0.00021917,2]
[358618320,1745314234274,-500.0,0.00021917,2]
[358618321,1745314234283,-581.96,0.00021917,2]
[358618322,1745314234293,-500.0,0.00021917,2]
[358618323,1745314234303,-500.0,0.00021917,2]
[358618324,1745314234313,-627.07,0.00021917,2]
[358618325,1745314234323,-500.0,0.00021917,2]
[358618326,1745314234332,-500.0,0.00021917,2]
[358618327,1745314234341,-500.0,0.00021917,2]
[358618328,1745314234351,-525.86,0.00021917,2]
[358618329,1745314234362,-500.0,0.00021917,2]
[358618330,1745314234373,-500.0,0.00021917,2]
[358618331,1745314234383,-500.0,0.00021917,2]
[358618332,1745314234392,-842.69,0.00021917,2]
[358618333,1745314234402,-500.0,0.00021917,2]
[358618334,1745314234413,-500.0,0.00021917,2]
[358618335,1745314234422,-500.0,0.00021917,2]
[358618336,1745314234432,-500.0,0.00021917,2]
[358618337,1745314234442,-500.0,0.00021917,2]
[358618338,1745314234452,-501.20362368,0.00021917,2]
[358618339,1745314234462,-13294.97,0.00021917,2]
[358618340,1745314234471,-500.0,0.00021917,2]
[358618341,1745314234482,-434.71008569,0.00021917,2]
[358618342,1745314234491,-500.0,0.00021917,2]
[358618343,1745314234501,-500.0,0.00021917,2]
[358618344,1745314234510,-501.05130396,0.00021917,2]
[358618345,1745314234520,-477.23616959,0.00021917,2]
[358618346,1745314234530,-500.0,0.00021917,2]
[358618347,1745314234539,-851.23,0.00021917,2]
[358618348,1745314234551,-555.29546178,0.00021917,2]
[358618349,1745314234560,-500.0,0.00021917,2]
[358618350,1745314234569,-500.0,0.00021917,2]
[358618351,1745314234580,-500.0,0.00021917,2]
[358618352,1745314234590,-500.0,0.00021917,2]
[358618353,1745314234604,-592.86,0.00021917,2]
[358618354,1745314234619,-1351.34,0.00021917,2]
[358618355,1745314234629,-500.0,0.00021917,2]
[358618356,1745314234639,-500.0,0.00021917,2]
[358618357,1745314234650,-928.74,0.00021917,2]
[358618358,1745314234661,-500.0,0.00021917,2]
[358618359,1745314234672,-500.60547767,0.00021917,2]
[358618360,1745314234683,-500.0,0.00021917,2]
[358618361,1745314234694,-504.30444375,0.00021917,2]
[358618362,1745314234705,-560.89743053,0.00021917,2]
[358618363,1745314234716,-528.08,0.00021917,2]
[358618364,1745314234726,-500.0,0.00021917,2]
[358618365,1745314234738,-1029.33,0.00021917,2]
[358618366,1745314234751,-500.0,0.00021917,2]
[358618367,1745314234760,-500.0,0.00021917,2]
[358618368,1745314234770,-500.0,0.00021917,2]
[358618369,1745314234779,-927.82,0.00021917,2]
[358618370,1745314234791,-511.59,0.00021917,2]
[358618371,1745314234802,-651.02,0.00021917,2]
[358618372,1745314234811,-500.0,0.00021917,2]
[358618373,1745314234821,-500.0,0.00021917,2]
[358618374,1745314234830,-687.17,0.00021917,2]
[358618375,1745314234839,-500.0,0.00021917,2]
[358618376,1745314234849,-570.98,0.00021917,2]
[358618377,1745314234858,-500.0,0.00021917,2]
[358618378,1745314234868,-219.84828243,0.00021917,2]
[358618379,1745314234878,-500.0,0.00021917,2]
[358618380,1745314234887,-500.0,0.00021917,2]
[358618381,1745314234897,-501.17014706,0.00021917,2]
[358618382,1745314234907,-500.0,0.00021917,2]
[358618383,1745314234919,-2105.46,0.00021917,2]
[358618384,1745314234929,-583.87812834,0.00021917,2]
[358618385,1745314234939,-644.28,0.00021917,2]
[358618386,1745314234949,-160.0,0.00021917,2]
[358618387,1745314234958,-500.0,0.00021917,2]
[358618388,1745314234968,-3664.15,0.00021917,2]
[358618389,1745314234977,-315.80266857,0.00021917,2]
[358618390,1745314234987,-500.0,0.00021917,2]
[358618391,1745314234996,-500.0,0.00021917,2]
[358618392,1745314235006,-500.0,0.00021917,2]
[358618393,1745314235016,-880.71,0.00021917,2]
[358618394,1745314235026,-501.41099759,0.00021917,2]
[358618395,1745314235035,-500.0,0.00021917,2]
[358618396,1745314235045,-819.23,0.00021917,2]
[358618397,1745314235055,-500.0,0.00021917,2]
[358618398,1745314235065,-500.0,0.00021917,2]
[358618399,1745314235075,-500.0,0.00021917,2]
[358618400,1745314235084,-1875.31,0.00021917,2]
[358618401,1745314235094,-500.0,0.00021917,2]
[358618402,1745314235103,-661.71,0.00021917,2]
[358618403,1745314235113,-500.0,0.00021917,2]
[358618404,1745314235122,-634.83,0.00021917,2]
[358618405,1745314235132,-500.0,0.00021917,2]
[358618406,1745314235141,-500.0,0.00021917,2]
[358618407,1745314235151,-500.0,0.00021917,2]
[358618408,1745314235160,-500.0,0.00021917,2]
[358618409,1745314235170,-500.0,0.00021917,2]
[358618410,1745314235179,-500.0,0.00021917,2]
[358618411,1745314235189,-500.0,0.00021917,2]
[358618412,1745314235199,-500.0,0.00021917,2]
[358618413,1745314235210,-500.0,0.00021917,2]
[358618414,1745314235222,-500.0,0.00021917,2]
[358618415,1745314235232,-1027.86,0.00021917,2]
[358618416,1745314235242,-500.0,0.00021917,2]
[358618417,1745314235252,-500.0,0.00021917,2]
[358618418,1745314235261,-501.25369205,0.00021917,2]
[358618419,1745314235271,-2241.63,0.00021917,2]
[358618420,1745314235280,-505.64894293,0.00021917,2]
[358618421,1745314235290,-500.0,0.00021917,2]
[358618422,1745314235300,-500.0,0.00021917,2]
[358618423,1745314235311,-8171.88,0.00021917,2]
[358618424,1745314235321,-441.8037443,0.00021917,2]
[358618425,1745314235330,-500.0,0.00021917,2]
[358618426,1745314235340,-500.0,0.00021917,2]
[358618427,1745314235349,-514.36190724,0.00021917,2]
[358618428,1745314235359,-500.0,0.00021917,2]
[358618429,1745314235369,-523.76809137,0.00021917,2]
[358618430,1745314235378,-672.1,0.00021917,2]
[358618431,1745314235387,-500.0,0.00021917,2]
[358618432,1745314235397,-827.8,0.00021917,2]
[358618433,1745314235406,-512.46123513,0.00021917,2]
[358618434,1745314235415,-500.0,0.00021917,2]
[358618435,1745314235424,-500.0,0.00021917,2]
[358618436,1745314235433,-500.0,0.00021917,2]
[358618437,1745314235443,-504.62062538,0.00021917,2]
[358618438,1745314235452,-500.0,0.00021917,2]
[358618439,1745314235462,-500.0,0.00021917,2]
[358618440,1745314235472,-1028.74,0.00021917,2]
[358618441,1745314235481,-629.89,0.00021917,2]
[358618442,1745314235491,-6020.14,0.00021917,2]
[358618443,1745314235500,-503.54395396,0.00021917,2]
[358618444,1745314235510,-500.0,0.00021917,2]
[358618445,1745314235519,-501.45315174,0.00021917,2]
[358618446,1745314235528,-501.06768043,0.00021917,2]
[358618447,1745314235537,-620.71,0.00021917,2]
[358618448,1745314235547,-500.0,0.00021917,2]
[358618449,1745314235556,-531.69,0.00021917,2]
[358618450,1745314235565,-509.81,0.00021917,2]
[358618451,1745314235574,-514.61586771,0.00021917,2]
[358618452,1745314235584,-500.0,0.00021917,2]
[358618453,1745314235593,-500.0,0.00021917,2]
[358618454,1745314235607,-534.38,0.00021917,2]
[358618455,1745314235617,-500.0,0.00021917,2]
[358618456,1745314235626,-500.0,0.00021917,2]
[358618457,1745314235636,-1025.11,0.00021917,2]
[358618458,1745314235646,-396.08098713,0.00021917,2]
[358618459,1745314235656,-500.0,0.00021917,2]
[358618460,1745314235666,-500.0,0.00021917,2]
[358618461,1745314235676,-500.0,0.00021917,2]
[358618462,1745314235687,-500.0,0.00021917,2]
[358618463,1745314235697,-903.42,0.00021917,2]
[358618464,1745314235706,-203.721675,0.00021918,2]
[358618465,1745314235715,-151.0,0.00021918,2]
[358618466,1745314235725,-151.0,0.00021918,2]
[358618467,1745314235736,-500.0,0.00021918,2]
[358618468,1745314235746,-500.0,0.00021918,2]
[358618469,1745314235755,-500.0,0.00021918,2]
[358618470,1745314235765,-199.39622962,0.00021918,2]
[358618471,1745314235774,-151.0,0.00021918,2]
[358618472,1745314235784,-151.0,0.00021918,2]
[358618473,1745314235794,-500.0,0.00021918,2]
[358618474,1745314235804,-151.0,0.00021918,2]
[358618475,1745314235813,-151.81801641,0.00021918,2]
[358618476,1745314235823,-500.0,0.00021918,2]
[358618477,1745314235832,-151.0,0.00021918,2]
[358618478,1745314235842,-151.0,0.00021918,2]
[358618479,1745314235852,-203.13675653,0.00021918,2]
[358618480,1745314235863,-197.96075176,0.00021918,2]
[358618481,1745314235873,-151.0,0.00021918,2]
[358618482,1745314235883,-151.0,0.00021918,2]
[358618483,1745314235894,-201.71072664,0.00021918,2]
[358618484,1745314235904,-151.41949388,0.00021918,2]
[358618485,1745314235914,-500.0,0.00021918,2]
[358618486,1745314235925,-202.86520938,0.00021918,2]
[358618487,1745314235935,-500.0,0.00021918,2]
[358618488,1745314235946,-151.0,0.00021918,2]
[358618489,1745314235957,-500.0,0.00021918,2]
[358618490,1745314235968,-192.0,0.00021927,2]
[358618491,1745314235978,-1719.0,0.00022,2]
[358618492,1745314235988,-1994.0,0.00022,2]
[358618493,1745314235998,-151.0,0.00022,5]
[358618494,1745314236008,-151.0,0.00022,6]
[358618495,1745314236017,-1110.17780975,0.00022,3]
[358618496,1745314236026,-151.0,0.00022064,7]
[358618497,1745314236035,-151.0,0.00022064,7]
[358618498,1745314236045,-5000.0,0.00022064,2]
[358618499,1745314236054,-151.0,0.00022088,7]
[358618500,1745314236063,-160.0,0.00022089,2]
[358618501,1745314236074,-160.0,0.00022089,2]
[358618502,1745314236083,-160.0,0.00022089,2]
[358618503,1745314236096,-160.0,0.00022089,2]
[358618504,1745314236107,-160.0,0.00022089,2]
[358618505,1745314236118,-420.73667954,0.00022089,2]
[358618506,1745314236127,-729.16666667,0.00022089,2]
[358618507,1745314236138,-12570.97479393,0.00022089,2]
[358618508,1745314236149,-160.0,0.00022089,2]
[358618509,1745314236160,-151.0,0.00022091,7]
[358618510,1745314236170,-151.0,0.00022091,7]
[358618511,1745314236179,-1793.64012,0.00022091,2]
[358618512,1745314236190,-160.0,0.00022091,2]
[358618513,1745314236311,-151.0,0.000221,6]
[358618514,1745314236320,-291.26194601,0.000221,2]
[358618515,1745314236330,-420.0,0.00022102,2]
[358618516,1745314236339,-420.0,0.00022102,2]
[358618517,1745314236349,-1294.48,0.00022164,2]
[358618518,1745314236358,-1294.48,0.00022164,2]
[358618519,1745314236367,-1294.48,0.00022164,2]
[358618520,1745314236376,-1294.48,0.00022164,2]
[358618521,1745314236386,-1294.48,0.00022164,2]
[358618522,1745314236396,-1294.48,0.00022164,2]
[358618523,1745314236405,-1294.48,0.00022164,2]
[358618524,1745314236415,-1294.48,0.00022164,2]
[358618525,1745314236424,-1294.48,0.00022164,2]
[358618526,1745314236435,-1294.48,0.00022164,2]
[358618527,1745314236445,-1294.48,0.00022164,2]
[358618528,1745314236455,-1294.48,0.00022164,2]
[358618529,1745314236464,-1294.48,0.00022164,2]
[358618530,1745314236474,-1294.48,0.00022164,2]
[358618531,1745314236484,-1294.48,0.00022164,2]
[358618532,1745314236494,-1294.48,0.00022164,2]
[358618533,1745314236503,-1294.48,0.00022164,2]
[358618534,1745314236512,-1294.48,0.00022164,2]
[358618535,1745314236522,-1294.48,0.00022164,2]
[358618536,1745314236531,-1294.48,0.00022164,2]
[358618537,1745314236541,-1294.48,0.00022164,2]
[358618538,1745314236552,-1294.48,0.00022164,2]
[358618539,1745314236562,-1294.48,0.00022164,2]